[Event "Croatian Championship 2022"]
[Site "Split"]
[Date "2022.12.02"]
[Round "4.2"]
[White "Brkic, Ante"]
[Black "Stevic, Hrvoje"]
[Result "1-0"]
[ECO "B28"]
[WhiteElo "2610"]
[BlackElo "2543"]
[Annotator "TA"]
[PlyCount "109"]
[EventDate "2022.11.29"]
[EventType "tourn"]
[EventCountry "CRO"]
[SourceTitle "playchess.com"]
[Source "ChessBase"]
[SourceQuality "1"]
[TimeControl "40/5400+30:1800+30"]

{[%evp 17,109,39,39,20,18,0,0,0,0,0,0,0,0,0,33,23,24,33,38,0,0,0,0,0,0,0,0,0,0,0,0,0,0,0,0,0,0,0,0,0,0,0,0,0,0,-10,0,0,0,-16,-8,-14,-8,-13,-8,-8,0,-14,-14,-16,-8,-20,105,115,89,95,272,271,259,243,289,273,160,177,220,138,141,153,29959,8733,29970,29970,29972,29973,29973,29974,29974,29976,29978,29979,29980,29981,29981,29982]} 1. e4 {[%emt 0:00:03]} c5 {[%emt 0:10:56]} 2. Nf3 {[%emt 0:00:11]} a6 {[%emt 0:00:04]} 3. c4 {[%emt 0:16:50]} Nc6 {[%emt 0:00:15]} 4. d4 {[%emt 0:00:07]} cxd4 {[%emt 0:00:06]} 5. Nxd4 {[%emt 0:00:04]} Nf6 {[%emt 0:00:04]} 6. Nc3 {[%emt 0:01:36]} e5 {[%emt 0:00:08]} 7. Nf5 {[%emt 0:01:45]} d5 {[%emt 0:00:09]} 8. cxd5 {[%emt 0:00:31]} Bxf5 {[%emt 0:00:12]} 9. exf5 {[%emt 0:00:05]} Nd4 {[%emt 0:00:06]} 10. g4 $5 {[%emt 0:05:34][%mdl 4] [#] A promising side line. B28: Sicilian: 2 Nf3 a6 (O'Kelly Variation).} (10. Bg5 $5) 10... h5 $146 {[%emt 0:00:23]} ({Predecessor:} 10... Nxd5 11. Bg2 Bb4 12. Bd2 Nf4 13. Bxf4 exf4 14. O-O O-O 15. Nd5 Bc5 16. Nxf4 Qg5 17. Nd5 h5 {0-1 (30) Martin,J (2429)-Ruff,M (2280) Duesseldorf 2017}) 11. g5 {[%emt 0:01:05]} Nxd5 {[%emt 0:00:07] Pair of Knights!} 12. Bg2 $1 {[%emt 0:03:45] The position is equal.} Bb4 {[%emt 0:00:13]} 13. Bd2 {[%emt 0:06:11]} Nf4 {[%emt 0:00:58]} 14. Bxf4 {[%emt 0:01:08]} (14. Bxb7 Nd3+ 15. Kf1 Nxb2 $17) 14... exf4 {[%emt 0:00:07]} 15. f6 {[%emt 0:00:01]} (15. Bxb7 $2 Qe7+ 16. Kf1 Qxb7 $19) (15. Qa4+ b5 16. Qd1 Rc8 $17) 15... gxf6 {[%emt 0:19:37]} 16. O-O {[%emt 0:01:34] Qa4+ is the strong threat.} (16. Bxb7 $2 {perishes.} Qe7+ 17. Kf1 Qxb7 $19) ({Reject} 16. Qa4+ b5 17. Qd1 Rc8 $17) 16... Bxc3 $1 {[%emt 0:04:49]} 17. bxc3 {[%emt 0:02:21]} Ne6 {[%emt 0:00:07]} 18. Qa4+ {[%emt 0:22:36]} Qd7 {[%emt 0:04:52]} 19. Qxd7+ {[%emt 0:06:50]} Kxd7 {[%emt 0:00:11]} 20. gxf6 {[%emt 0:01:44]} Rag8 {[%emt 0:34:48] Strongly threatening ...f3.} 21. Kh1 {[%emt 0:05:53]} Kc7 {[%emt 0:00:22]} 22. Rab1 {[%emt 0:01:57]} b6 {[%emt 0:00:15]} 23. Rb4 {[%emt 0:02:36]} Rg5 {[%emt 0:04:41][%cal Of4f3]} 24. Rc4+ {[%emt 0:01:20]} Rc5 {[%emt 0:01:10]} 25. Rxc5+ {[%emt 0:00:02]} Nxc5 $11 {[%emt 0:01:22][%mdl 4096] Endgame KRB-KRN} 26. Re1 {[%emt 0:00:22]} Ne6 {[%emt 0:03:41]} 27. h4 {[%emt 0:00:09]} Rh6 {[%emt 0:03:22]} 28. Re5 {[%emt 0:02:30]} Rxf6 {[%emt 0:01:34]} 29. Be4 {[%emt 0:08:47]} Nc5 {[%emt 0:02:05]} 30. Bf3 {[%emt 0:01:46]} Nd3 {[%emt 0:01:12]} 31. Re2 {[%emt 0:00:26]} Rf5 {[%emt 0:02:57]} 32. Be4 {[%emt 0:02:22]} Nc1 $1 {[%emt 0:00:03]} 33. Rd2 {[%emt 0:00:53]} (33. Rc2 $5 Re5 $8 34. Bh7 Re1+ 35. Kg2 $11) 33... Re5 {[%emt 0:00:13]} 34. Bf3 {[%emt 0:01:47]} Ra5 {[%emt 0:01:31]} 35. Bd5 {[%emt 0:00:39] [#]} Ne2 $1 {[%emt 0:00:49]} 36. Bxf7 {[%emt 0:01:59]} Nxc3 {[%emt 0:00:03]} 37. Kg2 {[%emt 0:00:48]} (37. Rc2 $5 Rc5 $8 38. Bxh5 $11) 37... Rf5 {[%emt 0:00:54]} 38. Bg6 {[%emt 0:00:33]} f3+ {[%emt 0:00:39]} 39. Kh3 {[%emt 0:00:18]} Ra5 {[%emt 0:02:32]} (39... Rc5 $11) 40. Rc2 $1 $16 {[%emt 0:00:00]} Rc5 {[%emt 0:00:00] [#]} 41. Bxh5 $1 {[%emt 0:05:45][%mdl 64]} Nxa2 $2 {[%emt 0:25:03]} (41... Kd6 $16 {was called for.}) (41... b5 42. Bxf3) 42. Rxc5+ $18 {[%emt 0:11:27]} ({Worse is} 42. Rxa2 Rxh5 43. Kg4 Rh8 $11) 42... bxc5 $16 {[%emt 0:00:03] KB-KN} 43. Bf7 {[%emt 0:00:06]} Nc3 {[%emt 0:00:05]} 44. h5 {[%emt 0:00:05][%cal Bh4h5,Bh5h6,Bh6h7][%mdl 32]} Ne4 {[%emt 0:00:25]} (44... Kd6 $18 45. h6 Ne4) 45. Kh4 $1 {[%emt 0:00:34][%mdl 1024] Threatens to win with h6. White has strong compensation.} Kd6 {[%emt 0:01:00][%cal Od6e7]} 46. h6 $1 {[%emt 0:00:11]} Nf6 {[%emt 0:00:04] Prevents h7.} 47. Kg5 {[%emt 0:01:09]} Ke7 {[%emt 0:00:05] Loses the game.} (47... Ke5 $16 48. Bh5 Ke6 49. Bxf3 Kf7) 48. Bb3 $1 {[%emt 0:01:57] Kg6 would kill now.} a5 {[%emt 0:00:10]} 49. Kf5 $1 {[%emt 0:07:18] White mates.} Nh7 {[%emt 0:07:33] [#]} 50. Bg8 $1 {[%emt 0:00:42]} Nf6 {[%emt 0:00:19] [#]} 51. h7 $1 {[%emt 0:00:33]} Nxh7 {[%emt 0:00:05]} 52. Bxh7 {[%emt 0:00:04]} Kd6 {[%emt 0:00:18]} 53. Bg8 {[%emt 0:01:52]} a4 {[%emt 0:00:44]} 54. Ke4 {[%emt 0:00:13]} a3 {[%emt 0:00:13]} 55. Bc4 {[%emt 0:06:56] Weighted Error Value: White=0.03 (flawless) /Black=0.39} 1-0

[Event "Croatian Championship 2022"]
[Site "Split"]
[Date "2022.12.02"]
[Round "4.3"]
[White "Saric, Ivan"]
[Black "Jovanovic, Zoran"]
[Result "1/2-1/2"]
[ECO "C43"]
[WhiteElo "2674"]
[BlackElo "2513"]
[Annotator "TA"]
[PlyCount "79"]
[EventDate "2022.11.29"]
[EventType "tourn"]
[EventCountry "CRO"]
[SourceTitle "playchess.com"]
[Source "ChessBase"]
[SourceQuality "1"]
[TimeControl "40/5400+30:1800+30"]

{[%evp 9,79,21,27,14,4,19,22,27,18,34,19,14,16,12,17,0,0,0,0,0,0,0,0,0,32,32,65,65,66,67,67,63,63,66,57,56,65,0,0,0,5,6,55,58,49,31,27,31,33,31,33,33,33,24,18,23,47,0,0,0,0,0,8,0,0,0,0,0,0,0,0,0]} 1. e4 {[%emt 0:00:02]} e5 {[%emt 0:01:09]} 2. Nf3 {[%emt 0:00:04]} Nf6 {[%emt 0:00:04]} 3. d4 {[%emt 0:03:23]} Nxe4 {[%emt 0:00:41]} 4. Bd3 {[%emt 0:00:47]} Nc6 {[%emt 0:00:07]} 5. Nxe5 {[%emt 0:06:54]} Nxe5 {[%emt 0:00:28]} 6. dxe5 {[%emt 0:00:02] C43: Petroff Defence: 3 d4.} (6. Bxe4 {simplifies} d5 7. dxe5 dxe4 8. Qxd8+ Kxd8 9. Nc3) 6... Nc5 $1 {[%emt 0:00:30] The main line 6...Nc5 scores better than 6...d5.} 7. Bc4 {[%emt 0:00:03]} d6 {[%emt 0:00:08]} 8. Qf3 {[%emt 0:00:05][%csl Gc4][%cal Rf3f7] [#]} Ne6 {[%emt 0:00:06]} 9. exd6 {[%emt 0:05:10]} Bxd6 {[%emt 0:01:22]} 10. Be3 {[%emt 0:00:56]} Bd7 {[%emt 0:00:10]} 11. Bd5 {[%emt 0:00:28] Inhibits Bc6.} c6 {[%emt 0:05:29]} 12. Bc4 {[%emt 0:07:57]} O-O {[%emt 0:15:42] [#]} 13. Nc3 $146 {[%emt 0:00:22]} ({Predecessor:} 13. Nd2 b5 14. Bb3 a5 15. a3 Qc7 16. Ne4 Be5 17. O-O-O a4 18. Ba2 Rad8 19. Nc5 {½-½ (35) Predke,A (2682)-Yu,Y (2713) Belgrade 2022}) 13... Be5 {[%emt 0:12:51]} 14. O-O-O {[%emt 0:02:35]} Bxc3 {[%emt 0:16:08]} 15. bxc3 {[%emt 0:00:12]} Qe7 {[%emt 0:00:28]} 16. Qg3 {[%emt 0:09:50]} Rfd8 {[%emt 0:15:04]} 17. Rd6 {[%emt 0:04:17]} Be8 {[%emt 0:03:32]} 18. Rhd1 {[%emt 0:00:28] White is much more active.} Rxd6 {[%emt 0:00:06]} 19. Rxd6 {[%emt 0:05:28]} Rd8 {[%emt 0:03:15]} 20. Rxd8 {[%emt 0:00:22]} Nxd8 {[%emt 0:00:38]} 21. h4 {[%emt 0:19:04]} ({But not} 21. Bxa7 Qa3+ 22. Kd1 Qxa7 $11) 21... b5 {[%emt 0:07:30]} 22. Bd3 {[%emt 0:01:40]} Ne6 {[%emt 0:00:57]} 23. h5 {[%emt 0:02:25]} (23. Qb8 $14) 23... Nc5 $1 $11 {[%emt 0:03:06]} 24. Bf5 {[%emt 0:11:02]} g6 {[%emt 0:02:39]} 25. Kd2 {[%emt 0:06:10]} Ne4+ {[%emt 0:02:12]} (25... a6 $11) 26. Bxe4 $14 {[%emt 0:00:03]} Qxe4 {[%emt 0:00:02][%mdl 4096] Endgame KQB-KQB} 27. Bd4 {[%emt 0:02:23]} (27. hxg6 {simplifies} hxg6 28. Bxa7 f6 29. Qd6) 27... Qe7 {[%emt 0:03:07]} 28. Qf4 {[%emt 0:02:47]} c5 {[%emt 0:03:02]} 29. Bf6 {[%emt 0:01:23]} Qd7+ {[%emt 0:00:27]} 30. Kc1 {[%emt 0:00:33] [#] Qh6 would kill now.} Qf5 {[%emt 0:00:12]} 31. Qd6 {[%emt 0:02:40]} (31. Qxf5 {simplifies} gxf5 32. c4 bxc4 33. Kd2) 31... Qe6 $1 {[%emt 0:00:21]} (31... Qxh5 $2 32. Qd8 Qh6+ 33. Kb2 $18) (31... Qxf2 $2 32. Qe5 Qf1+ 33. Kb2 $18) (31... gxh5 $2 32. Qg3+ Qg6 33. Qe5 Qh6+ 34. Kb2 $18) 32. Qd8 {[%emt 0:00:47]} (32. Qxc5 $2 {perishes.} Qxf6 33. Kb2 gxh5 34. Qxh5 Qe7 35. Qg4+ Kf8 $19) (32. Qxe6 {simplifies} fxe6 33. hxg6 hxg6 34. Bg5) 32... h6 {[%emt 0:00:56]} 33. g4 {[%emt 0:02:24]} (33. hxg6 $14 fxg6 34. f4) 33... g5 $11 {[%emt 0:01:01] The position is equal.} 34. f3 {[%emt 0:01:18]} a5 {[%emt 0:00:47]} 35. a3 {[%emt 0:00:13]} Kf8 {[%emt 0:01:31]} 36. Kb2 {[%emt 0:01:10]} Kg8 {[%emt 0:00:43]} 37. Kc1 {[%emt 0:02:42]} Qe1+ {[%emt 0:00:39]} 38. Kb2 {[%emt 0:00:03] Threatens to win with Be7.} Qe6 {[%emt 0:00:01]} 39. Kb1 {[%emt 0:01:08]} Qe1+ {[%emt 0:00:40]} 40. Kb2 {[%emt 0:00:00] Weighted Error Value: White=0.07 (flawless) /Black=0.06 (flawless)} 1/2-1/2

[Event "Croatian Championship 2022"]
[Site "Split"]
[Date "2022.12.02"]
[Round "4.4"]
[White "Zelcic, Robert"]
[Black "Saric, Ante"]
[Result "0-1"]
[ECO "C43"]
[WhiteElo "2496"]
[BlackElo "2504"]
[Annotator "TA"]
[PlyCount "80"]
[EventDate "2022.11.29"]
[EventType "tourn"]
[EventCountry "CRO"]
[SourceTitle "playchess.com"]
[Source "ChessBase"]
[SourceQuality "1"]
[TimeControl "40/5400+30:1800+30"]

{[%evp 9,80,11,24,10,9,17,30,-4,-12,-8,-1,0,0,0,0,0,0,0,0,0,0,0,11,0,0,0,13,2,13,5,8,6,5,3,33,8,18,3,32,28,44,0,0,0,0,0,0,0,0,0,0,0,0,0,0,0,0,-195,-169,-172,-183,-190,-164,-304,-306,-916,-916,-833,-721,-857,-857,-29980,-29972]} 1. e4 {[%emt 0:00:04]} e5 {[%emt 0:00:09]} 2. Nf3 {[%emt 0:00:15]} Nf6 {[%emt 0:00:05]} 3. d4 {[%emt 0:00:38]} Nxe4 {[%emt 0:00:08]} 4. Bd3 {[%emt 0:00:04]} Nc6 {[%emt 0:00:16]} 5. Nxe5 {[%emt 0:04:23]} Nxe5 {[%emt 0:00:17]} 6. dxe5 {[%emt 0:00:02] C43: Petroff Defence: 3 d4.} (6. Bxe4 {simplifies} d5 7. dxe5 dxe4 8. Qxd8+ Kxd8 9. Nc3) 6... Nc5 $1 {[%emt 0:00:10] 6...Nc5 is better than 6...d5.} (6... d5 7. O-O Nc5 8. Be2 Be7 9. Be3 O-O 10. f4 c6 11. Nc3 f6 12. exf6 Rxf6 13. Kh1 Bf5 14. g4 Be4+ 15. Nxe4 Nxe4 16. Bd3 {1-0 (36) Zelcic,R (2558)-Saric,A (2528) Opatija 2012 CBM 147 [Let's Check Training]}) 7. Bc4 {[%emt 0:00:10]} d6 {[%emt 0:00:15]} 8. Be3 {[%emt 0:03:58] White has an edge.} (8. Qf3 $5 {[%cal Rf3f7]} Ne6 9. exd6 $11) 8... Be6 {[%emt 0:19:04]} 9. Bxe6 {[%emt 0:52:03]} Nxe6 {[%emt 0:00:30] [#]} 10. Qf3 $146 {[%emt 0:00:22]} ({Predecessor:} 10. exd6 Bxd6 11. Qf3 Qh4 12. Nd2 O-O 13. O-O-O Qa4 14. Kb1 Qb5 15. Nb3 b6 16. Rd5 {0-1 (37) Swinkels,R (2523)-Pruijssers,R (2570) Rotterdam 2021}) 10... c6 {[%emt 0:05:46]} 11. exd6 $1 {[%emt 0:00:04]} Bxd6 {[%emt 0:00:32]} 12. Nd2 {[%emt 0:00:08]} Qa5 {[%emt 0:19:04]} 13. c3 {[%emt 0:01:43]} Qa6 {[%emt 0:01:43] Against Nc4} 14. g3 {[%emt 0:03:32]} O-O {[%emt 0:03:47]} 15. Qe2 {[%emt 0:00:36]} Qxe2+ {[%emt 0:00:52]} 16. Kxe2 {[%emt 0:00:02]} f5 {[%emt 0:01:59]} 17. f4 {[%emt 0:00:12]} Rfe8 {[%emt 0:06:48][%cal Oe6f4]} 18. Kf3 {[%emt 0:00:10]} Bc7 {[%emt 0:03:49]} 19. Rad1 {[%emt 0:02:51]} Rad8 {[%emt 0:02:45]} 20. a4 {[%emt 0:02:57][%cal Ba2a4,Ba4a5][%mdl 32]} Kf7 {[%emt 0:05:01]} 21. Nc4 {[%emt 0:03:19]} b6 {[%emt 0:06:26]} 22. b4 {[%emt 0:05:20]} Ke7 {[%emt 0:07:41]} 23. h4 {[%emt 0:04:01]} (23. Ke2 {simplifies} Rxd1 24. Rxd1 Rd8 25. Ra1) 23... h5 {[%emt 0:02:30]} 24. a5 {[%emt 0:00:36]} (24. Ke2 {simplifies} Rxd1 25. Rxd1 Rd8 26. Rb1) 24... b5 {[%emt 0:12:53]} 25. Ne5 {[%emt 0:00:19]} (25. Nb2 $5 {[%cal Re3a7]}) 25... Bxe5 {[%emt 0:00:00]} 26. fxe5 {[%emt 0:00:05]} a6 {[%emt 0:00:00]} 27. Bb6 {[%emt 0:00:24]} Rd5 {[%emt 0:00:00]} 28. Rxd5 {[%emt 0:03:23]} cxd5 $11 {[%emt 0:00:00][%mdl 4096] Endgame KRB-KRN} 29. Rd1 {[%emt 0:00:10]} Rc8 {[%emt 0:00:00]} 30. Rd3 {[%emt 0:00:10]} Rc4 {[%emt 0:00:00]} 31. Rxd5 {[%emt 0:09:39] Black must now prevent Bc5+.} Rxc3+ {[%emt 0:00:00]} 32. Be3 {[%emt 0:00:09]} g5 {[%emt 0:00:00]} 33. hxg5 $2 {[%emt 0:00:24] [#]} (33. Ke2 $11 {and White is okay.}) 33... Nxg5+ $19 {[%emt 0:00:00]} 34. Ke2 {[%emt 0:03:13]} Ne4 {[%emt 0:00:00]} 35. Kf3 {[%emt 0:00:08]} Rb3 {[%emt 0:00:00]} ({Inferior is} 35... Ke6 36. Rd8 $17) 36. Kf4 {[%emt 0:01:05]} (36. Rd4 {might work better.}) 36... Rxb4 {[%emt 0:00:41] [#] And now ...Nc3+ would win.} 37. Kxf5 $2 {[%emt 0:00:51]} (37. Rd1) 37... Nxg3+ {[%emt 0:00:12]} 38. Kg6 {[%emt 0:00:18]} Rg4+ {[%emt 0:00:15]} 39. Kh7 {[%emt 0:00:42]} Nf5 {[%emt 0:01:44]} 40. Ba7 {[%emt 0:00:00]} Ke6 {[%emt 0:00:00] Weighted Error Value: White=0.49/Black=0.04 (flawless)} 0-1

[Event "Croatian Championship 2022"]
[Site "Split"]
[Date "2022.12.02"]
[Round "4.5"]
[White "Bukal, Vladimir Jr."]
[Black "Doric, Darko"]
[Result "1/2-1/2"]
[ECO "A07"]
[WhiteElo "2411"]
[BlackElo "2446"]
[Annotator "TA"]
[PlyCount "76"]
[EventDate "2022.11.29"]
[EventType "tourn"]
[EventCountry "CRO"]
[SourceTitle "playchess.com"]
[Source "ChessBase"]
[SourceQuality "1"]
[TimeControl "40/5400+30:1800+30"]

{[%evp 10,76,20,0,9,8,0,0,7,7,18,11,15,0,9,17,19,8,25,10,11,18,34,12,35,9,35,39,59,46,54,45,86,69,83,97,98,95,130,78,100,26,28,10,39,13,75,12,87,83,89,15,17,0,15,0,15,33,87,0,11,0,135,89,110,0,0,0,76]} 1. Nf3 {[%emt 0:00:03]} d5 {[%emt 0:00:13]} 2. g3 {[%emt 0:00:06]} c6 {[%emt 0:00:41]} 3. Bg2 {[%emt 0:00:07]} Nf6 {[%emt 0:00:52]} 4. O-O {[%emt 0:00:22]} Bg4 {[%emt 0:00:21]} 5. h3 {[%emt 0:01:00]} Bxf3 {[%emt 0:01:28]} 6. Bxf3 {[%emt 0:03:18]} Nbd7 {[%emt 0:00:19] A07: Réti Opening: New York and Capablanca Systems.} 7. d3 {[%emt 0:06:19]} e5 {[%emt 0:00:31]} 8. Nd2 {[%emt 0:01:02]} Be7 {[%emt 0:07:18]} 9. e4 {[%emt 0:02:16]} dxe4 {[%emt 0:00:41]} 10. dxe4 {[%emt 0:00:08]} O-O {[%emt 0:02:49]} 11. Nc4 {[%emt 0:12:35]} Qc7 {[%emt 0:01:13]} 12. a4 {[%emt 0:02:26] [#]} a5 $146 {[%emt 0:00:11]} ({Predecessor:} 12... b6 13. b3 Rfe8 14. Bb2 Bf8 15. Qe2 a5 16. Rfd1 Nc5 17. Bc3 Nfd7 18. Kg2 Ne6 {1-0 (32) Profumo,A (2240)-Lapiccirella,D (2086) Milan 2003}) 13. Bd2 {[%emt 0:02:28]} Rfe8 {[%emt 0:00:42]} 14. Qe1 {[%emt 0:02:18][%cal Rd2a5]} b6 {[%emt 0:00:21]} 15. Bc3 {[%emt 0:02:07]} Bf8 {[%emt 0:02:15]} 16. b3 $36 {[%emt 0:05:36][%mdl 2048] White is pushing.} Nc5 {[%emt 0:02:05]} 17. Kg2 {[%emt 0:05:52]} Na6 {[%emt 0:05:50]} 18. Qe2 {[%emt 0:02:14]} Nb4 {[%emt 0:14:52]} 19. Bb2 {[%emt 0:21:14]} Nd7 {[%emt 0:08:02]} 20. h4 {[%emt 0:02:46][%cal Bh3h4,Bh4h5][%mdl 32]} Nc5 {[%emt 0:00:18]} 21. Bg4 {[%emt 0:06:27]} Rab8 {[%emt 0:09:05]} 22. Rfd1 {[%emt 0:03:45]} g6 {[%emt 0:03:06]} 23. h5 {[%emt 0:01:05]} Bg7 {[%emt 0:05:58]} 24. f3 {[%emt 0:05:02]} (24. c3 $142 Nba6 25. Bc1) 24... Red8 {[%emt 0:19:28]} 25. Bc1 {[%emt 0:04:20]} (25. h6 $16 Bh8 26. Bc3) 25... Rxd1 $11 {[%emt 0:03:43]} 26. Qxd1 {[%emt 0:00:03]} b5 {[%emt 0:00:24] And now ...gxh5 would win.} 27. Nb2 {[%emt 0:03:49]} gxh5 {[%emt 0:02:05]} (27... f5 $11 28. exf5 gxf5 29. Bxf5 Rf8) 28. Bf5 {[%emt 0:00:55]} (28. Bxh5 $16 Ne6 29. c3) 28... Ne6 {[%emt 0:04:35]} (28... Qd8 $11 29. Be3 Ne6) 29. c3 {[%emt 0:02:30] aiming for Bxe6.} Na6 {[%emt 0:00:30][%cal Bb4a6,Ba6c5,Bc5b3][%mdl 32]} 30. Be3 {[%emt 0:01:22] This pair of bishops is nice.} (30. Bxe6 $1 $16 {Hoping for Bf5.} fxe6 31. b4) 30... Nac5 {[%emt 0:01:01]} 31. Qh1 {[%emt 0:01:23]} Nxb3 {[%emt 0:01:53]} 32. Rf1 {[%emt 0:00:32]} Nf8 {[%emt 0:00:42]} (32... b4 $5 {[%cal Rb4c3]}) 33. Qxh5 {[%emt 0:00:14]} Qd6 {[%emt 0:01:07] [#]} (33... Rd8 $14) 34. Rh1 {[%emt 0:00:28] White is more active.} ({White should play} 34. Rd1 $1 $16 {[%cal Rd1d6]} Qe7 35. axb5 cxb5 36. Rh1) 34... h6 $1 {[%emt 0:02:07]} (34... Qa3 $2 35. Bxh7+ Nxh7 36. Qxh7+ Kf8 37. Nd3 $18) 35. Rh4 {[%emt 0:00:19][%mdl 1024] White has compensation.} (35. Bxh6 $2 {perishes.} Bxh6 36. Qxh6 Qxh6 37. Rxh6 Rd8 $19) 35... Ng6 {[%emt 0:00:41] [#]} (35... Ne6 $11 {remains equal.}) 36. Rg4 $1 $16 {[%emt 0:00:19]} Kh7 {[%emt 0:00:12]} (36... Qa3 37. Nd3 Qf8 38. Bxg6 fxg6 39. Rxg6 $18) 37. Rh4 {[%emt 0:00:53]} Kg8 {[%emt 0:00:19]} 38. Rg4 {[%emt 0:00:07]} Kh7 $1 {[%emt 0:00:05] Weighted Error Value: White=0.25 (precise) /Black=0.21 (precise)} (38... Qa3 $2 39. Bxg6 Qxb2+ 40. Kh3 $18) 1/2-1/2

[Event "Croatian Championship 2022"]
[Site "Split"]
[Date "2022.12.02"]
[Round "4.6"]
[White "Bosiocic, Marin"]
[Black "Kozul, Zdenko"]
[Result "1-0"]
[ECO "D78"]
[WhiteElo "2536"]
[BlackElo "2539"]
[Annotator "TA"]
[PlyCount "121"]
[EventDate "2022.11.29"]
[EventType "tourn"]
[EventCountry "CRO"]
[SourceTitle "playchess.com"]
[Source "ChessBase"]
[SourceQuality "1"]
[TimeControl "40/5400+30:1800+30"]

{[%evp 14,121,34,29,33,27,29,30,44,39,45,31,43,24,34,0,10,5,54,50,62,62,47,12,18,11,22,0,0,0,0,0,14,10,22,12,16,0,0,-5,-5,-5,-4,-84,0,0,71,65,51,0,0,0,0,0,117,117,128,135,143,0,0,0,0,0,0,0,0,0,0,0,0,0,0,0,9,0,26,26,473,469,440,422,469,454,656,654,637,637,616,518,442,0,608,564,594,594,585,581,573,566,493,482,29969,73,29970,29972,29972,29973,29977,29978]} 1. Nf3 {[%emt 0:00:03]} Nf6 {[%emt 0:00:26]} 2. c4 {[%emt 0:00:07]} g6 {[%emt 0:00:40]} 3. b3 {[%emt 0:00:11]} Bg7 {[%emt 0:01:28]} 4. Bb2 {[%emt 0:00:04]} O-O {[%emt 0:00:30]} 5. g3 {[%emt 0:00:05]} c6 {[%emt 0:09:19]} 6. Bg2 {[%emt 0:00:11]} d5 {[%emt 0:00:06]} 7. O-O {[%emt 0:00:16]} Bg4 {[%emt 0:00:39]} 8. d4 {[%emt 0:01:06]} Qc8 {[%emt 0:04:44] D78: Fianchetto Grünfeld: 6 0-0 c6.} 9. Re1 {[%emt 0:02:18]} Bh3 {[%emt 0:02:59]} 10. Bh1 {[%emt 0:00:06]} Rd8 {[%emt 0:06:17] White has an edge.} 11. Nc3 {[%emt 0:05:21]} h6 {[%emt 0:03:45] [#]} 12. cxd5 $146 {[%emt 0:04:12]} ({Predecessor:} 12. Rc1 e6 13. Ne5 dxc4 14. bxc4 Nbd7 15. Nd3 Nb6 16. Nb1 Nh7 17. e3 g5 18. Nd2 {1-0 (55) Lehmann,H-Gereben,E Wijk aan Zee 1972}) 12... Nxd5 {[%emt 0:05:27]} 13. Rc1 {[%emt 0:04:45]} Nxc3 {[%emt 0:00:43]} 14. Bxc3 {[%emt 0:01:36]} e5 {[%emt 0:01:28]} 15. e3 {[%emt 0:08:27]} e4 {[%emt 0:11:40]} (15... Qe6 $11) 16. Nd2 $14 {[%emt 0:00:34]} f5 $1 {[%emt 0:00:05]} 17. b4 {[%emt 0:02:36]} Qe6 {[%emt 0:04:31]} 18. Qb3 {[%emt 0:00:05]} Qxb3 {[%emt 0:00:21]} 19. Nxb3 {[%emt 0:00:05]} Na6 {[%emt 0:00:24]} 20. a4 {[%emt 0:10:02]} Bf8 {[%emt 0:06:22]} 21. Nc5 {[%emt 0:08:30]} Nxc5 {[%emt 0:06:03]} 22. bxc5 {[%emt 0:00:06]} b6 {[%emt 0:02:02]} 23. f3 {[%emt 0:10:14]} Re8 {[%emt 0:00:26]} 24. cxb6 {[%emt 0:07:52]} axb6 {[%emt 0:00:23]} 25. Bb2 {[%emt 0:00:40]} Bb4 {[%emt 0:07:56]} 26. Re2 {[%emt 0:02:11]} c5 {[%emt 0:00:54]} (26... Rxa4 27. fxe4 (27. Rxc6 Rea8 $16) 27... fxe4 28. Rxc6 $16) 27. Ra1 {[%emt 0:04:29]} Ra7 {[%emt 0:02:58]} 28. Kf2 {[%emt 0:01:44]} (28. dxc5 $11 Bxc5 29. Bd4) 28... g5 {[%emt 0:21:54]} (28... c4 $17) 29. Rc2 $11 {[%emt 0:03:14]} g4 {[%emt 0:00:00]} (29... Rd7 $11) 30. fxe4 $16 {[%emt 0:03:59]} fxe4 {[%emt 0:00:00]} 31. Ke2 {[%emt 0:00:22]} (31. Kg1 $14) 31... Rf7 $11 {[%emt 0:00:00][%cal Oc5c4]} 32. dxc5 {[%emt 0:04:13]} bxc5 {[%emt 0:00:00]} 33. a5 {[%emt 0:02:28]} Bxa5 {[%emt 0:00:00]} 34. Rxa5 $16 {[%emt 0:05:06]} Bf1+ {[%emt 0:00:00]} 35. Ke1 {[%emt 0:08:43]} Bd3 {[%emt 0:00:00]} 36. Rcxc5 {[%emt 0:00:53]} (36. Rf2 $16 {And now Rxf7 would win.} Rb8 37. Rxf7 (37. Rxc5 $2 Rxf2 38. Kxf2 Rxb2+ 39. Kg1 Rb1+ 40. Kg2 Re1 $19) 37... Kxf7 38. Bc1) 36... Rf1+ $11 {[%emt 0:00:00]} 37. Kd2 {[%emt 0:00:02]} Rf2+ {[%emt 0:00:00]} 38. Kc3 {[%emt 0:00:46] aiming for Ba3.} Rxh2 {[%emt 0:02:33]} 39. Ba1 {[%emt 0:01:35] Rh5 is the strong threat.} Rxh1 {[%emt 0:00:15]} 40. Kd4 {[%emt 0:00:00]} Rd1 {[%emt 0:00:00]} 41. Kd5 {[%emt 0:03:49]} Rf1 {[%emt 0:07:39]} 42. Be5 {[%emt 0:01:54]} Rf5 {[%emt 0:00:40]} 43. Kd4 {[%emt 0:00:59]} h5 {[%emt 0:05:17]} 44. Rd5 {[%emt 0:03:48]} (44. Bc7 {simplifies} Rxc5 45. Rxc5 Rc8 46. Rg5+) 44... Rc8 {[%emt 0:02:13][%csl Gd3][%cal Rc8c4]} 45. Rd6 {[%emt 0:01:28][%mdl 1024] Hoping for Rh6. White has compensation.} Rg5 $2 {[%emt 0:02:08][%mdl 8192] White leaves nothing to chance now.} (45... Rc4+ $2 46. Kd5 Rc8 47. Rh6 $18) (45... Re8 $11) 46. Rh6 $18 {[%emt 0:03:24]} Rd8+ {[%emt 0:03:23] [#]} 47. Kc3 $1 {[%emt 0:01:21] Rh8+ would kill now.} Rc8+ {[%emt 0:01:23]} 48. Kb4 {[%emt 0:00:28]} Kf8 {[%emt 0:00:48] [#]} (48... Rxe5 $142 49. Rxe5 Rc4+ 50. Kb3 Rc1) 49. Ra7 $1 {[%emt 0:06:12][%mdl 64] Intending Rh8+ and mate.} Bc4 {[%emt 0:00:39]} 50. Bf6 {[%emt 0:03:07]} Rg8 {[%emt 0:14:02]} 51. Bd4 {[%emt 0:02:30]} Rg5 {[%emt 0:00:00] Against Bc5+} 52. Bf6 {[%emt 0:00:10]} (52. Rh8+ Bg8 $16) 52... Rg8 {[%emt 0:00:00]} (52... Rb5+ 53. Ka4) 53. Rxh5 {[%emt 0:03:59]} Rg6 {[%emt 0:00:00]} 54. Bd4 {[%emt 0:00:27] Threatens to win with Bc5+.} Be6 {[%emt 0:00:00]} 55. Rh8+ {[%emt 0:01:01]} Bg8 {[%emt 0:00:00]} 56. Bc5+ {[%emt 0:00:43]} Ke8 {[%emt 0:00:00]} 57. Rh5 {[%emt 0:00:44] Against Rg5. White threatens Rf5 and mate.} Kd8 {[%emt 0:00:00]} (57... Be6 $18 58. Rhh7 (58. Re5 Kd8 $16) 58... Rb8+ 59. Ka3 Bg8 60. Rhe7+ Kd8) 58. Be7+ {[%emt 0:01:11]} ({Less strong is} 58. Rh8 Rb8+ 59. Kc3 Kc8 $16) 58... Ke8 {[%emt 0:00:00] [#]} 59. Rf5 $1 {[%emt 0:00:31][%csl Ge7][%cal Rf5f8] White mates.} Bf7 {[%emt 0:00:00]} 60. Bc5 {[%emt 0:00:24]} Rb8+ {[%emt 0:00:00]} 61. Ka5 {[%emt 0:00:29] Weighted Error Value: White=0.18 (very precise) /Black=0.37} 1-0